fUSD/lending_fUSD_20260228
["ID","MTS","AMOUNT","RATE_DAILY","PERIOD"]
[406856527,1772239236022,10000.01,6.529e-05,2]
[406856528,1772239236048,10000.01,6.529e-05,2]
[406856529,1772239236074,10000.01,6.529e-05,2]
[406856530,1772239236100,10000.01,6.529e-05,2]
[406856531,1772239236128,10000.01,6.529e-05,2]
[406856532,1772239236151,10000.01,6.529e-05,2]
[406856533,1772239297740,2085.998,6.398e-05,2]
[406856534,1772239297803,199.904,6.398e-05,2]
[406856535,1772239408361,-150.0,6.528e-05,2]
[406856536,1772239408389,-300.0,6.528e-05,2]
[406856537,1772239408417,-300.0,6.528e-05,2]
[406856538,1772239408443,-3500.01,6.529e-05,2]
[406856539,1772239411266,-1499.99,6.529e-05,2]
[406856553,1772239831385,-150.0,6.527e-05,2]
[406856554,1772239831395,-250.0,6.528e-05,2]
[406856555,1772239831404,-250.0,6.538e-05,2]
[406856556,1772239831414,-9442.01360275,6.629e-05,2]
[406856557,1772239831423,-600.0,6.8e-05,2]
[406856558,1772239831433,-1200.0,6.9e-05,2]
[406856559,1772239831442,-1900.0,7e-05,2]
[406856560,1772239831451,-250.0,7.18e-05,2]
[406856561,1772239831461,-5000.0,7.18e-05,2]
[406856562,1772239831471,-9999.99,7.899e-05,2]
[406856564,1772239831480,-299.99,7.899e-05,2]
[406856566,1772239831490,-14664.05,7.899e-05,2]
[406856568,1772239831499,-150.99,7.899e-05,2]
[406856570,1772239831508,-658.73,7.899e-05,2]
[406856572,1772239831518,-9999.99,7.899e-05,2]
[406856573,1772239831527,-84176.79,7.899e-05,2]
[406856574,1772239831538,-4350.01,8.178e-05,2]
[406856575,1772239831548,-325.0,8.39e-05,2]
[406856576,1772239831557,-491.0,8.487e-05,2]
[406856578,1772239831567,-277.0,8.504e-05,2]
[406856580,1772239831575,-281.0,8.521e-05,2]
[406856582,1772239831585,-250.0,8.624e-05,2]
[406856584,1772239831593,-902.0,8.959e-05,2]
[406856586,1772239831602,-1146.60920106,8.977e-05,2]
[406856588,1772239831611,-297.13758179,9.199e-05,2]
[406856589,1772239831620,-163.74,9.32e-05,2]
[406856590,1772239831629,-677.0,9.402e-05,2]
[406856592,1772239831638,-1021.0,9.421e-05,2]
[406856594,1772239831648,-166.66,9.632e-05,2]
[406856596,1772239831661,-1721.0,9.656e-05,2]
[406856598,1772239831670,-402.0,9.676e-05,2]
[406856600,1772239831680,-166.66,9.95e-05,2]
[406856602,1772239831690,-151.0,0.0001,2]
[406856604,1772239831701,-151.0,0.0001,2]
[406856605,1772239831710,-151.0,0.0001,2]
[406856606,1772239831720,-151.0,0.0001,2]
[406856607,1772239831731,-151.0,0.0001,2]
[406856608,1772239831741,-151.0,0.0001,2]
[406856609,1772239831751,-151.0,0.0001,2]
[406856610,1772239831764,-151.0,0.0001,2]
[406856611,1772239831773,-151.0,0.0001,2]
[406856612,1772239831782,-151.0,0.0001,2]
[406856613,1772239831792,-151.0,0.0001,2]
[406856614,1772239831801,-151.0,0.0001,2]
[406856615,1772239831811,-151.0,0.0001,2]
[406856616,1772239831821,-151.0,0.0001,2]
[406856617,1772239831830,-151.0,0.0001,2]
[406856618,1772239831842,-151.0,0.0001,2]
[406856619,1772239831852,-151.0,0.0001,2]
[406856620,1772239831862,-151.0,0.0001,2]
[406856621,1772239831872,-151.0,0.0001,2]
[406856622,1772239831881,-151.0,0.0001,2]
[406856623,1772239831890,-7735.06,0.00010097,2]
[406856624,1772239831900,-3320.7871722,0.0001011,2]
[406856625,1772239831909,-166.66,0.00010267,2]
[406856626,1772239831919,-166.66,0.00010585,2]
[406856627,1772239831928,-166.66,0.00010903,2]
[406856628,1772239831938,-5608.24932075,0.00011099,2]
[406856629,1772239831947,-166.66,0.00011221,2]
[406856630,1772239831956,-163.74,0.0001165,2]
[406856631,1772239831965,-421.425185,0.00012094,2]
[406856632,1772239831975,-500.0,0.00012181,2]
[406856633,1772239831984,-6527.17770337,0.00012717,2]
[406856634,1772239831997,-4832.54229663,0.00012717,2]
[406856635,1772239832006,-164.68,0.00012846,2]
[406856636,1772239832015,-175.65842633,0.00013699,2]
[406856637,1772239832024,-308.59204947,0.00013699,2]
[406856638,1772239832033,-163.74,0.0001398,2]
[406856639,1772239832043,-5608.24932074,0.00014027,2]
[406856640,1772239832052,-11955.3441534,0.00014107,2]
[406856641,1772239832061,-508.0,0.0001411,2]
[406856642,1772239832071,-1000.0,0.00014257,2]
[406856643,1772239832082,-166.66,0.00014777,2]
[406856644,1772239832091,-200.0,0.00014805,2]
[406856645,1772239832100,-508.18410595,0.000149,2]
[406856646,1772239832111,-164.68,0.00014987,2]
[406856647,1772239832120,-166.66,0.00015088,2]
[406856648,1772239832129,-166.66,0.00015399,2]
[406856649,1772239832142,-174.00015664,0.00015439,2]
[406856650,1772239832152,-160.0,0.00015439,2]
[406856651,1772239832161,-166.66,0.0001571,2]
[406856652,1772239832171,-558.65,0.00015729,2]
[406856653,1772239832180,-166.66,0.00016021,2]
[406856654,1772239832189,-1000.0,0.00016039,2]
[406856655,1772239832199,-983.325433,0.00016125,7]
[406856656,1772239832208,-166.66,0.00016332,2]
[406856657,1772239832218,-164.68,0.00017128,2]
[406856658,1772239832227,-350.0,0.00017142,2]
[406856659,1772239832236,-700.0,0.00017523,2]
[406856660,1772239832246,-1533.09,0.00017711,120]
[406856661,1772239832255,-150.0,0.00017724,2]
[406856662,1772239832264,-150.0,0.0001773,2]
[406856663,1772239832273,-150.0,0.00017731,2]
[406856664,1772239832282,-150.0,0.00017747,2]
[406856665,1772239832292,-150.0,0.00017765,2]
[406856666,1772239832301,-150.0,0.00017782,2]
[406856667,1772239832310,-2500.0,0.000178,6]
[406856668,1772239832320,-150.0,0.00017801,2]
[406856669,1772239832329,-150.0,0.00017808,2]
[406856670,1772239832338,-800.0,0.00017808,2]
[406856671,1772239832348,-150.0,0.0001782,2]
[406856672,1772239832358,-1000.0,0.00017821,2]
[406856673,1772239832367,-250.0,0.00017863,2]
[406856674,1772239832377,-253.46872602,0.00017865,2]
[406856675,1772239832386,-150.0,0.00017867,2]
[406856676,1772239832396,-10000.0,0.000179,2]
[406856677,1772239832406,-637.95990906,0.000179,2]
[406856678,1772239832416,-3100.0,0.000179,6]
[406856679,1772239832425,-336.19568416,0.000179,3]
[406856680,1772239832434,-11289.0,0.000179,2]
[406856681,1772239832444,-3414.69,0.00017906,2]
[406856682,1772239832453,-150.0,0.00017911,2]
[406856683,1772239832463,-10984.1967804,0.00017916,2]
[406856684,1772239832473,-214.8965447,0.00017927,2]
[406856685,1772239832483,-150.0,0.00017934,2]
[406856686,1772239832492,-150.0,0.00017942,2]
[406856687,1772239832501,-150.0,0.00017951,2]
[406856688,1772239832511,-150.0,0.00017954,2]
[406856689,1772239832520,-11391.0188834,0.00017973,2]
[406856690,1772239832530,-283.90698305,0.00017973,2]
[406856691,1772239832539,-150.0,0.00017989,2]
[406856692,1772239832550,-150.0,0.0001799,2]
[406856693,1772239832562,-3414.69,0.0001799,2]
[406856694,1772239832572,-150.0,0.00017997,2]
[406856695,1772239832581,-620.01,0.00017997,2]
[406856696,1772239832591,-232.92898172,0.00017998,5]
[406856697,1772239832601,-500.0,0.00017998,5]
[406856698,1772239832610,-500.0,0.00017998,5]
[406856699,1772239832619,-500.0,0.00017998,5]
[406856700,1772239832629,-500.0,0.00017998,5]
[406856701,1772239832638,-500.0,0.00017998,5]
[406856702,1772239832647,-500.0,0.00017998,5]
[406856703,1772239832659,-500.0,0.00017998,5]
[406856704,1772239832668,-500.0,0.00017998,5]
[406856705,1772239832678,-500.0,0.00017998,5]
[406856706,1772239832687,-500.0,0.00017998,5]
[406856707,1772239832697,-500.0,0.00017998,5]
[406856708,1772239832706,-500.0,0.00017998,5]
[406856709,1772239832717,-500.0,0.00017998,5]
[406856710,1772239832726,-500.0,0.00017998,5]
[406856711,1772239832737,-500.0,0.00017998,5]
[406856712,1772239832746,-500.0,0.00017998,5]
[406856713,1772239832756,-500.0,0.00017998,5]
[406856714,1772239832765,-174.61919141,0.00017998,5]
[406856715,1772239832774,-500.0,0.00017998,5]
[406856716,1772239832786,-500.0,0.00017998,5]
[406856717,1772239832794,-235.20247108,0.00017998,5]
[406856718,1772239832803,-500.0,0.00017998,5]
[406856719,1772239832812,-405.79163693,0.00017998,5]
[406856720,1772239832825,-94.20836307,0.00017998,5]
[406856721,1772239832834,-500.0,0.00017998,5]
[406856722,1772239832844,-500.0,0.00017998,5]
[406856723,1772239832853,-500.0,0.00017998,5]
[406856724,1772239832862,-500.0,0.00017998,5]
[406856725,1772239832871,-500.0,0.00017998,5]
[406856726,1772239832880,-500.0,0.00017998,5]
[406856727,1772239832889,-500.0,0.00017998,5]
[406856728,1772239832898,-500.0,0.00017998,5]
[406856729,1772239832908,-500.0,0.00017998,5]
[406856730,1772239832916,-500.0,0.00017998,5]
[406856731,1772239832932,-500.0,0.00017998,5]
[406856732,1772239832954,-312.27954623,0.00017998,5]
[406856733,1772239832971,-151.0,0.00017998,5]
[406856734,1772239832981,-151.0,0.00017998,5]
[406856735,1772239832991,-151.0,0.00017998,5]
[406856736,1772239833003,-151.0,0.00017998,5]
[406856737,1772239833012,-668.65185757,0.00017998,5]
[406856738,1772239833021,-151.0,0.00017998,5]
[406856739,1772239833033,-693.3919763,0.00017998,5]
[406856740,1772239833042,-719.04747942,0.00017998,5]
[406856741,1772239833052,-151.0,0.00017998,5]
[406856742,1772239833061,-745.65223616,0.00017998,5]
[406856743,1772239833071,-151.0,0.00017998,5]
[406856744,1772239833081,-773.2413689,0.00017998,5]
[406856745,1772239833091,-151.0,0.00017998,5]
[406856746,1772239833100,-801.85129955,0.00017998,5]
[406856747,1772239833109,-151.0,0.00017998,5]
[406856748,1772239833119,-831.51979763,0.00017998,5]
[406856749,1772239833128,-151.0,0.00017998,5]
[406856750,1772239833137,-862.28603014,0.00017998,5]
[406856751,1772239833147,-151.0,0.00017998,5]
[406856752,1772239833156,-894.19061326,0.00017998,5]
[406856753,1772239833165,-151.0,0.00017998,5]
[406856754,1772239833175,-927.27566595,0.00017998,5]
[406856755,1772239833184,-961.58486559,0.00017998,5]
[406856756,1772239833194,-997.16350561,0.00017998,5]
[406856757,1772239833203,-301.32550308,0.00017999,2]
[406856758,1772239833212,-207.06536927,0.00017999,2]
[406856759,1772239833222,-500.0,0.00017999,2]
[406856760,1772239833231,-189.79988636,0.00017999,2]
[406856761,1772239833240,-500.0,0.00017999,2]
[406856762,1772239833249,-500.0,0.00017999,2]
[406856763,1772239833259,-500.0,0.00017999,2]
[406856764,1772239833268,-500.0,0.00017999,2]
[406856765,1772239833277,-500.0,0.00017999,2]
[406856766,1772239833286,-500.0,0.00017999,2]
[406856767,1772239833296,-500.0,0.00017999,2]
[406856768,1772239833305,-500.0,0.00017999,2]
[406856769,1772239833314,-500.0,0.00017999,2]
[406856770,1772239833323,-500.0,0.00017999,2]
[406856771,1772239833333,-436.98021855,0.00017999,2]
[406856772,1772239833343,-500.0,0.00017999,2]
[406856773,1772239833352,-542.58467852,0.00017999,2]
[406856774,1772239833361,-192.66219104,0.00017999,2]
[406856775,1772239833370,-500.0,0.00017999,2]
[406856776,1772239833379,-500.0,0.00017999,2]
[406856777,1772239833389,-500.0,0.00017999,2]
[406856778,1772239833398,-1015.4460312,0.00017999,2]
[406856779,1772239833407,-500.0,0.00017999,2]
[406856780,1772239833417,-500.0,0.00017999,2]
[406856781,1772239833426,-500.0,0.00017999,2]
[406856782,1772239833436,-1015.4460312,0.00017999,2]
[406856783,1772239833446,-1015.4460312,0.00017999,2]
[406856784,1772239833456,-595.40741727,0.00017999,2]
[406856785,1772239833465,-500.0,0.00017999,2]
[406856786,1772239833474,-355.13212852,0.00017999,2]
[406856787,1772239833484,-1015.4460312,0.00017999,2]
[406856788,1772239833493,-500.0,0.00017999,2]
[406856789,1772239833503,-417.62442224,0.00017999,2]
[406856790,1772239833513,-1015.4460312,0.00017999,2]
[406856791,1772239833523,-1015.4460312,0.00017999,2]
[406856792,1772239833532,-1015.4460312,0.00017999,2]
[406856793,1772239833542,-1015.4460312,0.00017999,2]
[406856794,1772239833551,-1015.4460312,0.00017999,2]
[406856795,1772239833560,-1015.4460312,0.00017999,2]
[406856796,1772239833570,-1015.4460312,0.00017999,2]
[406856797,1772239833579,-1015.4460312,0.00017999,2]
[406856798,1772239833588,-1015.4460312,0.00017999,2]
[406856799,1772239833597,-618.64685734,0.00017999,2]
[406856800,1772239833610,-396.79917386,0.00017999,2]
[406856801,1772239833619,-996.49238017,0.00017999,2]
[406856802,1772239833631,-18.95365103,0.00017999,2]
[406856803,1772239833640,-231.04634897,0.00017999,2]
[406856804,1772239833652,-784.39968223,0.00017999,2]
[406856805,1772239833665,-406.02618427,0.00017999,2]
[406856806,1772239833677,-609.41984693,0.00017999,2]
[406856807,1772239833686,-1015.4460312,0.00017999,2]
[406856808,1772239833695,-401.9532012,0.00017999,2]
[406856809,1772239833708,-613.49283,0.00017999,2]
[406856810,1772239833717,-1015.4460312,0.00017999,2]
[406856811,1772239833727,-1015.4460312,0.00017999,2]
[406856812,1772239833736,-956.03941827,0.00017999,2]
[406856813,1772239833747,-59.40661293,0.00017999,2]
[406856814,1772239833757,-759.01911019,0.00017999,2]
[406856815,1772239833768,-256.42692101,0.00017999,2]
[406856816,1772239833778,-341.57307899,0.00017999,2]
[406856817,1772239833789,-393.653476,0.00017999,2]
[406856818,1772239833800,-280.21947621,0.00017999,2]
[406856819,1772239833810,-191.62657026,0.00017999,2]
[406856822,1772239837381,-823.81946094,0.00017999,2]
[406856823,1772239837391,-1015.4460312,0.00017999,2]
[406856824,1772239837401,-1015.4460312,0.00017999,2]
[406856825,1772239837410,-1015.4460312,0.00017999,2]
[406856826,1772239837419,-1015.4460312,0.00017999,2]
[406856827,1772239837432,-1015.4460312,0.00017999,2]
[406856828,1772239837442,-1015.4460312,0.00017999,2]
[406856829,1772239837453,-1015.4460312,0.00017999,2]
[406856830,1772239837462,-1015.4460312,0.00017999,2]
[406856831,1772239837472,-1015.4460312,0.00017999,2]
[406856832,1772239837481,-1015.4460312,0.00017999,2]
[406856833,1772239837491,-1015.4460312,0.00017999,2]
[406856834,1772239837500,-1015.4460312,0.00017999,2]
[406856835,1772239837509,-1015.4460312,0.00017999,2]
[406856841,1772239837670,-1015.4460312,0.00017999,2]
[406856843,1772239837682,-1015.4460312,0.00017999,2]
[406856845,1772239837692,-1015.4460312,0.00017999,2]
[406856848,1772239837702,-1015.4460312,0.00017999,2]
[406856850,1772239837722,-1015.4460312,0.00017999,2]
[406856852,1772239837734,-1015.4460312,0.00017999,2]
[406856854,1772239837744,-1015.4460312,0.00017999,2]
[406856855,1772239837754,-1015.4460312,0.00017999,2]
[406856856,1772239837764,-265.48062341,0.00017999,2]
[406856857,1772239837773,-1011.65394503,0.00017999,2]
[406856858,1772239837782,-1011.65394503,0.00017999,2]
[406856859,1772239837792,-1011.65394503,0.00017999,2]
[406856860,1772239837802,-1011.65394503,0.00017999,2]
[406856861,1772239837812,-1011.65394503,0.00017999,2]
[406856862,1772239837822,-1011.65394503,0.00017999,2]
[406856863,1772239837831,-1011.65394503,0.00017999,2]
[406856864,1772239837841,-1011.65394503,0.00017999,2]
[406856865,1772239837851,-1011.65394503,0.00017999,2]
[406856866,1772239837860,-1011.65394503,0.00017999,2]
[406856867,1772239837870,-1011.65394503,0.00017999,2]
[406856868,1772239837880,-1011.65394503,0.00017999,2]
[406856869,1772239837890,-1011.65394503,0.00017999,2]
[406856870,1772239837900,-1011.65394503,0.00017999,2]
[406856871,1772239837910,-1011.65394503,0.00017999,2]
[406856872,1772239837919,-1011.65394503,0.00017999,2]
[406856873,1772239837929,-1011.65394503,0.00017999,2]
[406856874,1772239837938,-1011.65394503,0.00017999,2]
[406856875,1772239837948,-1011.65394503,0.00017999,2]
[406856876,1772239837958,-1011.65394503,0.00017999,2]
[406856877,1772239837967,-1011.65394503,0.00017999,2]
[406856878,1772239837977,-1011.65394503,0.00017999,2]
[406856879,1772239837987,-1011.65394503,0.00017999,2]
[406856880,1772239837997,-1011.65394503,0.00017999,2]
[406856881,1772239838008,-1011.65394503,0.00017999,2]
[406856882,1772239838018,-1011.65394503,0.00017999,2]
[406856883,1772239838029,-1011.65394503,0.00017999,2]
[406856884,1772239838039,-1011.65394503,0.00017999,2]
[406856885,1772239838051,-1011.65394503,0.00017999,2]
[406856886,1772239838060,-1011.65394503,0.00017999,2]
[406856887,1772239838071,-1011.65394503,0.00017999,2]
[406856888,1772239838081,-1011.65394503,0.00017999,2]
[406856889,1772239838092,-1011.65394503,0.00017999,2]
[406856890,1772239838102,-1078.51484414,0.00017999,2]
[406856891,1772239838112,-1078.51484414,0.00017999,2]
[406856892,1772239838126,-1078.51484414,0.00017999,2]
[406856893,1772239838136,-1078.51484414,0.00017999,2]
[406856894,1772239838147,-1078.51484414,0.00017999,2]
[406856895,1772239838159,-1078.51484414,0.00017999,2]
[406856896,1772239838170,-1078.51484414,0.00017999,2]
[406856897,1772239838180,-1078.51484414,0.00017999,2]
[406856898,1772239838190,-1078.51484414,0.00017999,2]
[406856899,1772239838199,-44373.24888162,0.00018,2]
[406856900,1772239838217,-610.00414217,0.00018,2]
[406856901,1772239838229,-7349.70995999,0.00018,2]
[406856904,1772239839535,-690.47448976,0.00018,2]
[406856905,1772239839546,-885.5580175,0.00018,2]
[406856906,1772239839748,-505.0,0.00018,2]
[406856907,1772239840059,-0.71595539,0.00018,2]
[406856908,1772239840071,-2075.5,0.00018,2]
[406856911,1772239842416,-12940.55648981,0.00018,2]
[406856912,1772239842524,-1036.94153083,0.00018,2]
[406856913,1772239842535,-16512.63184029,0.00018,2]
[406856914,1772239842546,-7595.19730418,0.00018,2]
[406856915,1772239842579,-5100.93599827,0.00018,2]
[406856916,1772239842687,-1158.91537295,0.00018,2]
[406856917,1772239842699,-445.90494493,0.00018,2]
[406856926,1772240523565,1107.76913408,8.468e-05,3]
[406856934,1772241031411,-2410.62805522,7.437e-05,2]
[406856935,1772241031423,-1027.24194478,7.437e-05,2]
[406856937,1772241031432,-213.0,7.437e-05,2]
[406856939,1772241031442,-300.0,7.57e-05,2]
[406856941,1772241031454,-300.0,7.57e-05,2]
[406856943,1772241031464,-678.54312426,7.57e-05,2]
[406856945,1772241031479,-521.45687574,7.57e-05,2]
[406856946,1772241031488,-7592.00840863,7.571e-05,2]
[406856947,1772241031499,-57284.08169341,7.571e-05,2]
[406856948,1772241031510,-910.50719199,7.571e-05,2]
[406856949,1772241031526,-18866.31949593,7.571e-05,2]
[406856950,1772241031537,-465.18605663,7.571e-05,2]
[406856951,1772241031548,-716.51117773,7.571e-05,2]
[406856952,1772241031560,-739.83242181,7.571e-05,2]
[406856953,1772241031582,-1703.04317917,7.571e-05,2]
[406856954,1772241031595,-2920.0,7.571e-05,2]
[406856955,1772241031607,-1422.63899574,7.571e-05,2]
[406856967,1772241037577,-1907379.87137896,7.571e-05,2]
[406856968,1772241037587,-300.0,7.598e-05,2]
[406856969,1772241037597,-6744.6228,7.599e-05,2]
[406856970,1772241037606,-4133.4035,7.599e-05,2]
[406856971,1772241037615,-89540.8234,7.599e-05,2]
[406856972,1772241037624,-250.0,7.67e-05,2]
[406856973,1772241037634,-30403.0,7.671e-05,2]
[406856974,1772241037643,-250.0,7.679e-05,2]
[406856975,1772241037652,-150.0,7.686e-05,2]
[406856976,1772241037661,-151.0,7.696e-05,2]
[406856977,1772241037671,-1000.0,7.698e-05,2]
[406856978,1772241037679,-500.0,7.698e-05,2]
[406856979,1772241037688,-500.0,7.698e-05,2]
[406856980,1772241037698,-500.0,7.698e-05,2]
[406856981,1772241037707,-500.0,7.698e-05,2]
[406856982,1772241037716,-500.0,7.698e-05,2]
[406856983,1772241037725,-500.0,7.698e-05,2]
[406856984,1772241037735,-500.0,7.698e-05,2]
[406856985,1772241037744,-500.0,7.698e-05,2]
[406856986,1772241037753,-500.0,7.698e-05,2]
[406856987,1772241037763,-500.0,7.698e-05,2]
[406856988,1772241037775,-500.0,7.698e-05,2]
[406856989,1772241037784,-500.0,7.698e-05,2]
[406856991,1772241037793,-500.0,7.698e-05,2]
[406856993,1772241037802,-500.0,7.698e-05,2]
[406856995,1772241037811,-500.0,7.698e-05,2]
[406856997,1772241037820,-500.0,7.698e-05,2]
[406856999,1772241037829,-500.0,7.698e-05,2]
[406857001,1772241037838,-500.0,7.698e-05,2]
[406857003,1772241037848,-500.0,7.698e-05,2]
[406857005,1772241037856,-500.0,7.698e-05,2]
[406857007,1772241037865,-500.0,7.698e-05,2]
[406857008,1772241037875,-500.0,7.698e-05,2]
[406857010,1772241037884,-500.0,7.698e-05,2]
[406857012,1772241037893,-521.47019783,7.698e-05,2]
[406857014,1772241037902,-500.0,7.698e-05,2]
[406857016,1772241037912,-500.0,7.698e-05,2]
[406857018,1772241037921,-500.0,7.698e-05,2]
[406857020,1772241037930,-500.0,7.698e-05,2]
[406857022,1772241037940,-500.0,7.698e-05,2]
[406857024,1772241037949,-500.0,7.698e-05,2]
[406857026,1772241037959,-500.0,7.698e-05,2]
[406857029,1772241037971,-500.0,7.698e-05,2]
[406857031,1772241037981,-500.0,7.698e-05,2]
[406857033,1772241037991,-500.0,7.698e-05,2]
[406857035,1772241038000,-500.0,7.698e-05,2]
[406857037,1772241038009,-500.0,7.698e-05,2]
[406857038,1772241038020,-500.0,7.698e-05,2]
[406857040,1772241038030,-164.61479743,7.698e-05,2]
[406857042,1772241038040,-177.26749081,7.698e-05,2]
[406857044,1772241038049,-500.0,7.699e-05,2]
[406857047,1772241038059,-968.4476,7.699e-05,2]
[406857049,1772241038068,-150.99,7.712e-05,2]
[406857051,1772241038078,-999.99,7.712e-05,2]
[406857052,1772241038087,-299.99,7.712e-05,2]
[406857054,1772241038097,-9999.99,7.712e-05,2]
[406857056,1772241038106,-1973.145,7.797e-05,2]
[406857058,1772241038115,-200.152,7.797e-05,2]
[406857060,1772241038124,-197.47,7.8e-05,2]
[406857062,1772241038133,-1200.0,7.8e-05,2]
[406857064,1772241038143,-2400.0,7.9e-05,2]
[406857066,1772241038152,-3600.0,8e-05,2]
[406857068,1772241038162,-500.0,8.219e-05,2]
[406857071,1772241038173,-300.0,8.327e-05,2]
[406857073,1772241038182,-1680.0,8.327e-05,2]
[406857075,1772241038191,-420.0,8.358e-05,2]
[406857077,1772241038200,-250.0,8.437e-05,2]
[406857079,1772241038209,-255.0,8.454e-05,2]
[406857080,1772241038219,-500.0,8.493e-05,2]
[406857082,1772241038228,-606.66674669,8.673e-05,2]
[406857084,1772241038237,-500.0,8.673e-05,2]
[406857104,1772241038246,-500.0,8.673e-05,2]
[406857106,1772241038422,-502.07392204,8.673e-05,2]
[406857108,1772241038431,-344.08056128,8.673e-05,2]
[406857110,1772241038440,-500.0,8.673e-05,2]
[406857112,1772241038449,-500.0,8.767e-05,2]
[406857114,1772241038458,-186.781262,8.792e-05,2]
[406857116,1772241038467,-500.0,8.902e-05,2]
[406857118,1772241038476,-500.0,9.041e-05,2]
[406857120,1772241038485,-2351.0,9.16e-05,2]
[406857122,1772241038495,-292.0,9.193e-05,2]
[406857124,1772241038504,-1000.0,9.221e-05,2]
[406857126,1772241038513,-1000.0,9.221e-05,2]
[406857128,1772241038522,-1000.0,9.221e-05,2]
[406857130,1772241038532,-1848.44,9.287e-05,2]
[406857132,1772241038541,-433.0,9.3e-05,2]
[406857134,1772241038551,-500.0,9.315e-05,2]
[406857136,1772241038559,-500.0,9.589e-05,2]
[406857138,1772241038568,-1500.0,9.768e-05,2]
[406857139,1772241038578,-1500.0,9.768e-05,2]
[406857141,1772241038591,-1500.0,9.768e-05,2]
[406857143,1772241038605,-250.0,9.826e-05,2]
[406857145,1772241038614,-427.46515504,9.863e-05,2]
[406857147,1772241038623,-28500.66091958,9.95e-05,2]
[406857149,1772241038636,-1967.31764889,0.0001,2]
[406857151,1772241038647,-926.91238002,0.0001,2]
[406857153,1772241038656,-500.0,0.0001,2]
[406857155,1772241038665,-500.0,0.0001,2]
[406857157,1772241038676,-500.0,0.0001,2]
[406857159,1772241038688,-500.0,0.0001,2]
[406857161,1772241038700,-500.0,0.0001,2]
[406857163,1772241038709,-500.0,0.0001,2]
[406857165,1772241038720,-500.0,0.0001,2]
[406857167,1772241038737,-500.0,0.0001,2]
[406857169,1772241038745,-500.0,0.0001,2]
[406857171,1772241038755,-500.0,0.0001,2]
[406857173,1772241038765,-151.0,0.0001,2]
[406857175,1772241038776,-500.0,0.0001,2]
[406857177,1772241038785,-151.0,0.0001,2]
[406857179,1772241038794,-500.0,0.0001,2]
[406857181,1772241038804,-151.0,0.0001,2]
[406857183,1772241038814,-151.0,0.0001,2]
[406857185,1772241038825,-151.0,0.0001,2]
[406857187,1772241038834,-151.0,0.0001,2]
[406857189,1772241038844,-151.0,0.0001,2]
[406857191,1772241038853,-151.0,0.0001,2]
[406857193,1772241038862,-151.0,0.0001,2]
[406857195,1772241038873,-151.0,0.0001,2]
[406857198,1772241038883,-151.0,0.0001,2]
[406857199,1772241038894,-151.0,0.0001,2]
[406857201,1772241038904,-151.0,0.0001,2]
[406857203,1772241038914,-151.0,0.0001,2]
[406857205,1772241038924,-151.0,0.0001,2]
[406857207,1772241038936,-151.0,0.0001,2]
[406857208,1772241038947,-151.0,0.0001,2]
[406857210,1772241038956,-151.0,0.0001,2]
[406857212,1772241038965,-151.0,0.0001,2]
[406857213,1772241038974,-151.0,0.0001,2]
[406857215,1772241038985,-151.0,0.0001,2]
[406857218,1772241038996,-151.0,0.0001,2]
[406857219,1772241039005,-151.0,0.0001,2]
[406857222,1772241039016,-151.0,0.0001,2]
[406857224,1772241039029,-151.0,0.0001,2]
[406857225,1772241039038,-151.0,0.0001,2]
[406857227,1772241039048,-151.0,0.0001,2]
[406857229,1772241039058,-151.0,0.0001,2]
[406857231,1772241039068,-151.0,0.0001,2]
[406857233,1772241039080,-151.0,0.0001,2]
[406857235,1772241039092,-151.0,0.0001,2]
[406857237,1772241039102,-151.0,0.0001,2]